[Event "Titled Tuesday Blitz September 28 2021"]
[White "Le, Tuan Minh"]
[Black "Aldokhin, Ivan"]
[WhiteFideId "12401153"]
[BlackFideId "24115720"]
[WhiteElo "2450"]
[BlackElo "2265"]
[Result "1-0"]
[Round "07"]
[TimeControl "180+1"]
[Date "2021.09.28"]
[WhiteClock "0:01:25"]
[BlackClock "0:00:28"]

1. d4 {[%clk 0:03:00]}  Nf6 {[%clk 0:03:00]} 2. Nf3 {[%clk 0:03:01]}  g6 {[%clk 0:03:00]} 3. Bg5 {[%clk 0:03:01]}  Bg7 {[%clk 0:02:58]} 4. Nbd2 {[%clk 0:03:02]}  d5 {[%clk 0:02:54]} 5. c3 {[%clk 0:03:02]}  O-O {[%clk 0:02:53]} 6. e3 {[%clk 0:03:02]}  b6 {[%clk 0:02:52]} 7. Bd3 {[%clk 0:03:03]}  c5 {[%clk 0:02:52]} 8. O-O {[%clk 0:03:02]}  Bb7 {[%clk 0:02:53]} 9. Qe2 {[%clk 0:03:02]}  Ne4 {[%clk 0:02:45]} 10. Bf4 {[%clk 0:03:02]}  Nd7 {[%clk 0:02:41]} 11. Rfd1 {[%clk 0:03:02]}  Qe8 {[%clk 0:02:36]} 12. a4 {[%clk 0:01:46]}  Nxd2 {[%clk 0:02:33]} 13. Rxd2 {[%clk 0:01:44]}  e5 {[%clk 0:02:30]} 14. dxe5 {[%clk 0:01:44]}  Nxe5 {[%clk 0:02:29]} 15. Bxe5 {[%clk 0:01:43]}  Bxe5 {[%clk 0:02:29]} 16. Ba6 {[%clk 0:01:44]}  Bc6 {[%clk 0:02:18]} 17. Bb5 {[%clk 0:01:43]}  Bg7 {[%clk 0:01:21]} 18. Rxd5 {[%clk 0:01:36]}  Bxd5 {[%clk 0:01:15]} 19. Bxe8 {[%clk 0:01:36]}  Rfxe8 {[%clk 0:01:12]} 20. a5 {[%clk 0:01:36]}  Rad8 {[%clk 0:01:08]} 21. axb6 {[%clk 0:01:36]}  axb6 {[%clk 0:01:09]} 22. h3 {[%clk 0:01:37]}  Be4 {[%clk 0:01:05]} 23. Rd1 {[%clk 0:01:36]}  Bf6 {[%clk 0:01:04]} 24. Nd2 {[%clk 0:01:31]}  Bd3 {[%clk 0:01:02]} 25. Qf3 {[%clk 0:01:31]}  Rd6 {[%clk 0:00:49]} 26. Nc4 {[%clk 0:01:27]}  Rdd8 {[%clk 0:00:28]} 27. Qxf6 {[%clk 0:01:25]} 1-0


[Site "https://www.chess.com"]

[Event "Titled Tuesday Blitz September 28 2021"]
[White "Leitao, Rafael"]
[Black "Demin, Vladimir"]
[WhiteFideId "2101246"]
[BlackFideId "4167457"]
[WhiteElo "2609"]
[BlackElo "2513"]
[Result "0-1"]
[Round "07"]
[TimeControl "180+1"]
[Date "2021.09.28"]
[WhiteClock "0:00:13"]
[BlackClock "0:01:10"]

1. c4 {[%clk 0:03:00]}  Nf6 {[%clk 0:02:59]} 2. Nc3 {[%clk 0:02:59]}  e6 {[%clk 0:03:00]} 3. e4 {[%clk 0:02:58]}  d5 {[%clk 0:03:01]} 4. e5 {[%clk 0:02:56]}  Ne4 {[%clk 0:03:01]} 5. Nf3 {[%clk 0:02:47]}  Be7 {[%clk 0:02:52]} 6. d4 {[%clk 0:02:46]}  O-O {[%clk 0:02:51]} 7. Bd3 {[%clk 0:02:43]}  Nxc3 {[%clk 0:02:48]} 8. bxc3 {[%clk 0:02:43]}  c5 {[%clk 0:02:49]} 9. cxd5 {[%clk 0:02:39]}  exd5 {[%clk 0:02:47]} 10. O-O {[%clk 0:02:37]}  Nc6 {[%clk 0:02:47]} 11. h3 {[%clk 0:02:33]}  h6 {[%clk 0:02:46]} 12. Bc2 {[%clk 0:02:27]}  f5 {[%clk 0:02:41]} 13. dxc5 {[%clk 0:01:43]}  Be6 {[%clk 0:02:35]} 14. Nd4 {[%clk 0:01:42]}  Qd7 {[%clk 0:02:33]} 15. Bb3 {[%clk 0:01:40]}  Rad8 {[%clk 0:02:32]} 16. Qf3 {[%clk 0:01:34]}  Bxc5 {[%clk 0:02:27]} 17. Rd1 {[%clk 0:01:29]}  Kh8 {[%clk 0:02:04]} 18. Nxe6 {[%clk 0:01:09]}  Qxe6 {[%clk 0:02:03]} 19. Bxd5 {[%clk 0:01:07]}  Nxe5 {[%clk 0:02:03]} 20. Qe2 {[%clk 0:00:39]}  Rxd5 {[%clk 0:02:01]} 21. Bf4 {[%clk 0:00:39]}  Re8 {[%clk 0:01:54]} 22. Re1 {[%clk 0:00:36]}  Bd6 {[%clk 0:01:45]} 23. Kh1 {[%clk 0:00:35]}  Qf7 {[%clk 0:01:33]} 24. c4 {[%clk 0:00:32]}  Rc5 {[%clk 0:01:32]} 25. Rad1 {[%clk 0:00:32]}  Bc7 {[%clk 0:01:27]} 26. Bg3 {[%clk 0:00:25]}  f4 {[%clk 0:01:24]} 27. Bh2 {[%clk 0:00:25]}  Re7 {[%clk 0:01:22]} 28. Rd4 {[%clk 0:00:25]}  Nc6 {[%clk 0:01:19]} 29. Re4 {[%clk 0:00:25]}  Rxe4 {[%clk 0:01:18]} 30. Qxe4 {[%clk 0:00:26]}  Re5 {[%clk 0:01:19]} 31. Qb1 {[%clk 0:00:27]}  Rxe1+ {[%clk 0:01:17]} 32. Qxe1 {[%clk 0:00:27]}  Qe7 {[%clk 0:01:18]} 33. Qc1 {[%clk 0:00:26]}  Nd4 {[%clk 0:01:15]} 34. Qd2 {[%clk 0:00:19]}  Qe4 {[%clk 0:01:11]} 35. Bg1 {[%clk 0:00:13]}  f3 {[%clk 0:01:10]} 0-1


[Site "https://www.chess.com"]

[Event "Titled Tuesday Blitz September 28 2021"]
[White "Martin Carmona, Gaston Manuel"]
[Black "Seo, Jung Min"]
[WhiteFideId "22284567"]
[BlackFideId "1734687"]
[WhiteElo "2161"]
[BlackElo "2486"]
[Result "0-1"]
[Round "07"]
[TimeControl "180+1"]
[Date "2021.09.28"]
[WhiteClock "0:00:10"]
[BlackClock "0:01:41"]

1. e4 {[%clk 0:02:49]}  c5 {[%clk 0:02:59]} 2. Nf3 {[%clk 0:02:48]}  d6 {[%clk 0:03:00]} 3. d4 {[%clk 0:02:49]}  cxd4 {[%clk 0:03:00]} 4. Nxd4 {[%clk 0:02:50]}  Nf6 {[%clk 0:03:01]} 5. Nc3 {[%clk 0:02:50]}  a6 {[%clk 0:03:01]} 6. Bg5 {[%clk 0:02:51]}  Nbd7 {[%clk 0:03:01]} 7. Qe2 {[%clk 0:02:50]}  e6 {[%clk 0:02:58]} 8. f4 {[%clk 0:02:20]}  Qc7 {[%clk 0:02:57]} 9. O-O-O {[%clk 0:02:10]}  Be7 {[%clk 0:02:54]} 10. g4 {[%clk 0:02:06]}  h6 {[%clk 0:02:50]} 11. Bxf6 {[%clk 0:01:57]}  Nxf6 {[%clk 0:02:46]} 12. e5 {[%clk 0:01:50]}  dxe5 {[%clk 0:02:46]} 13. fxe5 {[%clk 0:01:50]}  Nd7 {[%clk 0:02:45]} 14. Nf3 {[%clk 0:01:43]}  b5 {[%clk 0:02:45]} 15. Bg2 {[%clk 0:01:42]}  Bb7 {[%clk 0:02:45]} 16. h4 {[%clk 0:01:39]}  Rd8 {[%clk 0:02:40]} 17. Kb1 {[%clk 0:01:38]}  Bxf3 {[%clk 0:02:31]} 18. Bxf3 {[%clk 0:01:32]}  Nxe5 {[%clk 0:02:29]} 19. Rxd8+ {[%clk 0:01:31]}  Bxd8 {[%clk 0:02:29]} 20. Be4 {[%clk 0:01:28]}  Bf6 {[%clk 0:02:15]} 21. Qg2 {[%clk 0:01:08]}  Nc4 {[%clk 0:02:06]} 22. g5 {[%clk 0:00:43]}  hxg5 {[%clk 0:01:57]} 23. hxg5 {[%clk 0:00:44]}  Rxh1+ {[%clk 0:01:55]} 24. Qxh1 {[%clk 0:00:45]}  Bxg5 {[%clk 0:01:49]} 25. Qh8+ {[%clk 0:00:40]}  Ke7 {[%clk 0:01:48]} 26. Qxg7 {[%clk 0:00:36]}  Bf6 {[%clk 0:01:48]} 27. Qg2 {[%clk 0:00:31]}  Bxc3 {[%clk 0:01:44]} 28. bxc3 {[%clk 0:00:32]}  Qe5 {[%clk 0:01:44]} 29. Kc1 {[%clk 0:00:14]}  Qf4+ {[%clk 0:01:43]} 30. Kb1 {[%clk 0:00:10]}  Nd2+ {[%clk 0:01:41]} 0-1


[Site "https://www.chess.com"]

[Event "Titled Tuesday Blitz September 28 2021"]
[White "Martins, Igor Carvalho Ribeiro"]
[Black "Aradhya, Garg"]
[WhiteFideId "2162962"]
[BlackFideId "25006746"]
[WhiteElo "2486"]
[BlackElo "2146"]
[Result "1/2-1/2"]
[Round "07"]
[TimeControl "180+1"]
[Date "2021.09.28"]
[WhiteClock "0:00:29"]
[BlackClock "0:00:18"]

1. Nf3 {[%clk 0:03:00]}  d5 {[%clk 0:03:00]} 2. d4 {[%clk 0:03:00]}  Nf6 {[%clk 0:02:59]} 3. c4 {[%clk 0:02:59]}  c6 {[%clk 0:02:59]} 4. Nc3 {[%clk 0:02:58]}  dxc4 {[%clk 0:02:58]} 5. a4 {[%clk 0:02:57]}  Bf5 {[%clk 0:02:58]} 6. Ne5 {[%clk 0:02:57]}  Nbd7 {[%clk 0:02:58]} 7. Nxc4 {[%clk 0:02:56]}  Nb6 {[%clk 0:02:59]} 8. Ne5 {[%clk 0:02:55]}  a5 {[%clk 0:02:58]} 9. f3 {[%clk 0:02:54]}  Nfd7 {[%clk 0:02:57]} 10. e4 {[%clk 0:02:54]}  Nxe5 {[%clk 0:02:56]} 11. dxe5 {[%clk 0:02:53]}  Qxd1+ {[%clk 0:02:50]} 12. Kxd1 {[%clk 0:02:52]}  Be6 {[%clk 0:02:51]} 13. Kc2 {[%clk 0:02:51]}  f6 {[%clk 0:02:48]} 14. Be3 {[%clk 0:02:49]}  Nd7 {[%clk 0:02:47]} 15. exf6 {[%clk 0:02:43]}  exf6 {[%clk 0:02:47]} 16. Be2 {[%clk 0:02:20]}  Nc5 {[%clk 0:02:43]} 17. Bxc5 {[%clk 0:01:49]}  Bxc5 {[%clk 0:02:44]} 18. Rhd1 {[%clk 0:01:46]}  Ke7 {[%clk 0:02:44]} 19. b3 {[%clk 0:01:43]}  Rhd8 {[%clk 0:02:44]} 20. Bc4 {[%clk 0:01:42]}  Bd4 {[%clk 0:02:33]} 21. Rd3 {[%clk 0:01:35]}  Be5 {[%clk 0:02:31]} 22. Bxe6 {[%clk 0:01:14]}  Kxe6 {[%clk 0:02:28]} 23. g3 {[%clk 0:01:14]}  g5 {[%clk 0:02:26]} 24. Rad1 {[%clk 0:01:11]}  Rxd3 {[%clk 0:02:26]} 25. Rxd3 {[%clk 0:01:11]}  h5 {[%clk 0:02:26]} 26. Ne2 {[%clk 0:01:09]}  Rg8 {[%clk 0:02:07]} 27. Kd2 {[%clk 0:01:00]}  Ke7 {[%clk 0:02:04]} 28. Ke3 {[%clk 0:00:59]}  h4 {[%clk 0:02:03]} 29. f4 {[%clk 0:00:58]}  hxg3 {[%clk 0:02:03]} 30. hxg3 {[%clk 0:00:57]}  Bd6 {[%clk 0:01:50]} 31. Kf3 {[%clk 0:00:56]}  gxf4 {[%clk 0:01:48]} 32. gxf4 {[%clk 0:00:55]}  Rh8 {[%clk 0:01:47]} 33. Nd4 {[%clk 0:00:54]}  Rh3+ {[%clk 0:01:47]} 34. Ke2 {[%clk 0:00:54]}  Rxd3 {[%clk 0:01:47]} 35. Kxd3 {[%clk 0:00:53]}  Bxf4 {[%clk 0:01:48]} 36. Nf5+ {[%clk 0:00:50]}  Kd7 {[%clk 0:01:48]} 37. Kc4 {[%clk 0:00:49]}  Be5 {[%clk 0:01:47]} 38. Ne3 {[%clk 0:00:48]}  b6 {[%clk 0:01:40]} 39. Nc2 {[%clk 0:00:48]}  Kd6 {[%clk 0:01:37]} 40. b4 {[%clk 0:00:47]}  axb4 {[%clk 0:01:35]} 41. Nxb4 {[%clk 0:00:47]}  Bg3 {[%clk 0:01:34]} 42. Nd3 {[%clk 0:00:47]}  Bh2 {[%clk 0:01:27]} 43. Kc3 {[%clk 0:00:46]}  Bg1 {[%clk 0:01:26]} 44. Kc4 {[%clk 0:00:46]}  Be3 {[%clk 0:01:26]} 45. Kb4 {[%clk 0:00:46]}  Bd2+ {[%clk 0:01:18]} 46. Kc4 {[%clk 0:00:46]}  Ba5 {[%clk 0:01:18]} 47. Kd4 {[%clk 0:00:45]}  b5 {[%clk 0:01:18]} 48. axb5 {[%clk 0:00:45]}  cxb5 {[%clk 0:01:19]} 49. e5+ {[%clk 0:00:42]}  fxe5+ {[%clk 0:01:18]} 50. Nxe5 {[%clk 0:00:42]}  Bb6+ {[%clk 0:01:19]} 51. Ke4 {[%clk 0:00:42]}  Bg1 {[%clk 0:00:58]} 52. Nd3 {[%clk 0:00:40]}  Kc6 {[%clk 0:00:57]} 53. Kf3 {[%clk 0:00:40]}  Kd5 {[%clk 0:00:57]} 54. Ke2 {[%clk 0:00:40]}  Kc4 {[%clk 0:00:56]} 55. Kd2 {[%clk 0:00:40]}  Kb3 {[%clk 0:00:55]} 56. Nc1+ {[%clk 0:00:39]}  Kb2 {[%clk 0:00:55]} 57. Nd3+ {[%clk 0:00:39]}  Kb3 {[%clk 0:00:54]} 58. Nc1+ {[%clk 0:00:38]}  Ka3 {[%clk 0:00:55]} 59. Kc2 {[%clk 0:00:38]}  Bc5 {[%clk 0:00:53]} 60. Nb3 {[%clk 0:00:37]}  Be3 {[%clk 0:00:53]} 61. Na5 {[%clk 0:00:35]}  b4 {[%clk 0:00:44]} 62. Nc4+ {[%clk 0:00:34]}  Ka2 {[%clk 0:00:44]} 63. Na5 {[%clk 0:00:34]}  Bb6 {[%clk 0:00:38]} 64. Nb3 {[%clk 0:00:32]}  Be3 {[%clk 0:00:37]} 65. Na5 {[%clk 0:00:32]}  Bh6 {[%clk 0:00:32]} 66. Nb3 {[%clk 0:00:32]}  Bg7 {[%clk 0:00:31]} 67. Na5 {[%clk 0:00:31]}  Ka3 {[%clk 0:00:28]} 68. Nb3 {[%clk 0:00:31]}  Be5 {[%clk 0:00:25]} 69. Na5 {[%clk 0:00:31]}  Bc7 {[%clk 0:00:22]} 70. Nb3 {[%clk 0:00:30]}  Bb6 {[%clk 0:00:22]} 71. Nc1 {[%clk 0:00:30]}  Bd8 {[%clk 0:00:18]} 72. Nb3 {[%clk 0:00:30]}  Bg5 {[%clk 0:00:18]} 73. Na5 {[%clk 0:00:30]}  Be3 {[%clk 0:00:18]} 74. Nb3 {[%clk 0:00:30]}  Ka2 {[%clk 0:00:18]} 75. Na5 {[%clk 0:00:29]} 1/2-1/2


[Site "https://www.chess.com"]

[Event "Titled Tuesday Blitz September 28 2021"]
[White "Mgeladze, Tamaz"]
[Black "Wagner, Dinara"]
[WhiteFideId "13601202"]
[BlackFideId "24157570"]
[WhiteElo "2258"]
[BlackElo "2260"]
[Result "1-0"]
[Round "07"]
[TimeControl "180+1"]
[Date "2021.09.28"]
[WhiteClock "0:00:19"]
[BlackClock "0:00:02"]

1. c4 {[%clk 0:03:00]}  c5 {[%clk 0:02:59]} 2. Nc3 {[%clk 0:02:59]}  Nc6 {[%clk 0:02:59]} 3. g3 {[%clk 0:03:00]}  g6 {[%clk 0:03:00]} 4. Bg2 {[%clk 0:03:01]}  Bg7 {[%clk 0:03:00]} 5. Nf3 {[%clk 0:03:01]}  d6 {[%clk 0:03:00]} 6. O-O {[%clk 0:03:02]}  e5 {[%clk 0:03:00]} 7. a3 {[%clk 0:03:01]}  Nge7 {[%clk 0:02:59]} 8. Rb1 {[%clk 0:03:01]}  a5 {[%clk 0:02:59]} 9. d3 {[%clk 0:03:01]}  O-O {[%clk 0:02:54]} 10. Bg5 {[%clk 0:03:02]}  h6 {[%clk 0:02:54]} 11. Be3 {[%clk 0:03:01]}  Be6 {[%clk 0:02:54]} 12. Qa4 {[%clk 0:03:01]}  b6 {[%clk 0:02:45]} 13. Rfc1 {[%clk 0:02:57]}  Rc8 {[%clk 0:02:45]} 14. Ne1 {[%clk 0:02:56]}  d5 {[%clk 0:02:43]} 15. cxd5 {[%clk 0:02:52]}  Nxd5 {[%clk 0:02:43]} 16. Nxd5 {[%clk 0:02:48]}  Bxd5 {[%clk 0:02:43]} 17. Bd2 {[%clk 0:02:47]}  Nd4 {[%clk 0:02:38]} 18. Bxd5 {[%clk 0:02:43]}  Qxd5 {[%clk 0:02:02]} 19. Qd1 {[%clk 0:02:42]}  Nb3 {[%clk 0:02:00]} 20. Rc2 {[%clk 0:02:40]}  Nd4 {[%clk 0:01:57]} 21. Rcc1 {[%clk 0:02:38]}  h5 {[%clk 0:01:58]} 22. Bc3 {[%clk 0:02:36]}  h4 {[%clk 0:01:55]} 23. Bxd4 {[%clk 0:02:35]}  exd4 {[%clk 0:01:55]} 24. gxh4 {[%clk 0:02:27]}  Rfe8 {[%clk 0:01:40]} 25. Nf3 {[%clk 0:02:27]}  Qf5 {[%clk 0:01:32]} 26. Qf1 {[%clk 0:02:22]}  Rc6 {[%clk 0:01:29]} 27. b4 {[%clk 0:02:20]}  Rce6 {[%clk 0:01:27]} 28. Rc2 {[%clk 0:02:14]}  axb4 {[%clk 0:01:27]} 29. axb4 {[%clk 0:02:14]}  Qg4+ {[%clk 0:01:25]} 30. Qg2 {[%clk 0:02:12]}  Qxg2+ {[%clk 0:01:21]} 31. Kxg2 {[%clk 0:02:13]}  Rxe2 {[%clk 0:01:22]} 32. Rxe2 {[%clk 0:02:14]}  Rxe2 {[%clk 0:01:21]} 33. bxc5 {[%clk 0:02:15]}  bxc5 {[%clk 0:01:22]} 34. Rb8+ {[%clk 0:02:15]}  Bf8 {[%clk 0:01:18]} 35. Rb7 {[%clk 0:02:02]}  Be7 {[%clk 0:01:13]} 36. Kf1 {[%clk 0:02:00]}  Re6 {[%clk 0:01:13]} 37. Nd2 {[%clk 0:01:57]}  Bxh4 {[%clk 0:01:09]} 38. Rc7 {[%clk 0:01:54]}  Be7 {[%clk 0:01:02]} 39. Ne4 {[%clk 0:01:50]}  Kg7 {[%clk 0:00:56]} 40. Nxc5 {[%clk 0:01:48]}  Bxc5 {[%clk 0:00:56]} 41. Rxc5 {[%clk 0:01:49]}  Rd6 {[%clk 0:00:57]} 42. Rc4 {[%clk 0:01:46]}  Kf6 {[%clk 0:00:57]} 43. Kg2 {[%clk 0:01:47]}  Ke5 {[%clk 0:00:57]} 44. Rc5+ {[%clk 0:01:45]}  Ke6 {[%clk 0:00:57]} 45. Kf3 {[%clk 0:01:44]}  f5 {[%clk 0:00:55]} 46. Kf4 {[%clk 0:01:43]}  Kf6 {[%clk 0:00:54]} 47. h4 {[%clk 0:01:42]}  Ra6 {[%clk 0:00:49]} 48. Rd5 {[%clk 0:01:41]}  Ra2 {[%clk 0:00:44]} 49. f3 {[%clk 0:01:35]}  Rh2 {[%clk 0:00:39]} 50. Kg3 {[%clk 0:01:34]}  Rd2 {[%clk 0:00:38]} 51. Rxd4 {[%clk 0:01:34]}  Ke5 {[%clk 0:00:39]} 52. Rd8 {[%clk 0:01:34]}  f4+ {[%clk 0:00:38]} 53. Kh3 {[%clk 0:01:34]}  Rf2 {[%clk 0:00:37]} 54. d4+ {[%clk 0:01:32]}  Ke6 {[%clk 0:00:32]} 55. Kg4 {[%clk 0:01:31]}  Rh2 {[%clk 0:00:31]} 56. Rf8 {[%clk 0:01:27]}  Rg2+ {[%clk 0:00:12]} 57. Kxf4 {[%clk 0:01:27]}  Rd2 {[%clk 0:00:12]} 58. Rd8 {[%clk 0:01:22]}  Rg2 {[%clk 0:00:11]} 59. Ra8 {[%clk 0:01:15]}  Rd2 {[%clk 0:00:10]} 60. Ra6+ {[%clk 0:01:13]}  Kf7 {[%clk 0:00:09]} 61. Ra4 {[%clk 0:01:08]}  Rh2 {[%clk 0:00:09]} 62. Ke5 {[%clk 0:01:01]}  Rxh4 {[%clk 0:00:09]} 63. Ra7+ {[%clk 0:01:02]}  Kf8 {[%clk 0:00:08]} 64. d5 {[%clk 0:01:01]}  Rh1 {[%clk 0:00:08]} 65. Kf6 {[%clk 0:01:00]}  Ke8 {[%clk 0:00:08]} 66. Kxg6 {[%clk 0:00:44]}  Rf1 {[%clk 0:00:08]} 67. Rf7 {[%clk 0:00:37]}  Rd1 {[%clk 0:00:05]} 68. Rf5 {[%clk 0:00:36]}  Ke7 {[%clk 0:00:05]} 69. Re5+ {[%clk 0:00:33]}  Kd6 {[%clk 0:00:05]} 70. f4 {[%clk 0:00:34]}  Rg1+ {[%clk 0:00:05]} 71. Kf6 {[%clk 0:00:32]}  Rf1 {[%clk 0:00:05]} 72. f5 {[%clk 0:00:30]}  Rf2 {[%clk 0:00:05]} 73. Re1 {[%clk 0:00:24]}  Kxd5 {[%clk 0:00:06]} 74. Kg6 {[%clk 0:00:21]}  Kd6 {[%clk 0:00:05]} 75. f6 {[%clk 0:00:21]}  Rg2+ {[%clk 0:00:05]} 76. Kf7 {[%clk 0:00:22]}  Kd7 {[%clk 0:00:05]} 77. Kf8 {[%clk 0:00:22]}  Kd8 {[%clk 0:00:05]} 78. Rd1+ {[%clk 0:00:21]}  Kc8 {[%clk 0:00:05]} 79. f7 {[%clk 0:00:22]}  Kc7 {[%clk 0:00:03]} 80. Rf1 {[%clk 0:00:20]}  Kd7 {[%clk 0:00:03]} 81. Rd1+ {[%clk 0:00:20]}  Ke6 {[%clk 0:00:03]} 82. Re1+ {[%clk 0:00:21]}  Kd7 {[%clk 0:00:03]} 83. Re4 {[%clk 0:00:20]}  Kd6 {[%clk 0:00:04]} 84. Ke8 {[%clk 0:00:20]}  Ra2 {[%clk 0:00:02]} 85. f8=Q+ {[%clk 0:00:20]}  Kc6 {[%clk 0:00:01]} 86. Re6+ {[%clk 0:00:19]}  Kd5 {[%clk 0:00:02]} 87. Qd6+ {[%clk 0:00:19]}  Kc4 {[%clk 0:00:02]} 88. Re4+ {[%clk 0:00:19]}  Kb5 {[%clk 0:00:03]} 89. Rb4+ {[%clk 0:00:18]}  Ka5 {[%clk 0:00:02]} 90. Qb6# {[%clk 0:00:19]} 1-0


[Site "https://www.chess.com"]

[Event "Titled Tuesday Blitz September 28 2021"]
[White "Molina, Roberto Junio Brito"]
[Black "Sadhwani, Raunak"]
[WhiteFideId "2109450"]
[BlackFideId "35093487"]
[WhiteElo "2736"]
[BlackElo "2957"]
[Result "0-1"]
[Round "07"]
[TimeControl "180+1"]
[Date "2021.09.28"]
[WhiteClock "0:00:02"]
[BlackClock "0:00:06"]

1. d4 {[%clk 0:03:00]}  Nf6 {[%clk 0:02:59]} 2. c4 {[%clk 0:03:01]}  g6 {[%clk 0:03:00]} 3. Nc3 {[%clk 0:03:00]}  Bg7 {[%clk 0:03:00]} 4. e4 {[%clk 0:03:00]}  d6 {[%clk 0:03:01]} 5. Nf3 {[%clk 0:03:00]}  O-O {[%clk 0:03:01]} 6. Be2 {[%clk 0:03:01]}  Qe8 {[%clk 0:03:02]} 7. O-O {[%clk 0:03:00]}  e5 {[%clk 0:03:02]} 8. Re1 {[%clk 0:03:01]}  exd4 {[%clk 0:03:02]} 9. Nxd4 {[%clk 0:03:01]}  Nxe4 {[%clk 0:03:03]} 10. Nd5 {[%clk 0:02:58]}  Qd8 {[%clk 0:03:02]} 11. Bf3 {[%clk 0:02:54]}  Nxf2 {[%clk 0:03:01]} 12. Kxf2 {[%clk 0:02:03]}  Qh4+ {[%clk 0:03:00]} 13. Kf1 {[%clk 0:01:52]}  Bxd4 {[%clk 0:02:58]} 14. Qd2 {[%clk 0:01:28]}  Nc6 {[%clk 0:02:35]} 15. Re4 {[%clk 0:01:26]}  Qxh2 {[%clk 0:01:10]} 16. Rxd4 {[%clk 0:01:25]}  Nxd4 {[%clk 0:01:11]} 17. Qxd4 {[%clk 0:01:24]}  Qe5 {[%clk 0:01:11]} 18. Be3 {[%clk 0:01:00]}  c6 {[%clk 0:00:54]} 19. Nf6+ {[%clk 0:00:36]}  Kg7 {[%clk 0:00:48]} 20. Qd2 {[%clk 0:00:36]}  Be6 {[%clk 0:00:38]} 21. Bd4 {[%clk 0:00:33]}  Kxf6 {[%clk 0:00:14]} 22. Bxe5+ {[%clk 0:00:26]}  dxe5 {[%clk 0:00:15]} 23. b3 {[%clk 0:00:24]}  h5 {[%clk 0:00:13]} 24. Re1 {[%clk 0:00:23]}  Rfe8 {[%clk 0:00:12]} 25. Qc3 {[%clk 0:00:18]}  Bf5 {[%clk 0:00:12]} 26. Kf2 {[%clk 0:00:17]}  Rad8 {[%clk 0:00:12]} 27. Qa5 {[%clk 0:00:15]}  Rd7 {[%clk 0:00:08]} 28. Qxa7 {[%clk 0:00:13]}  e4 {[%clk 0:00:08]} 29. Qa5 {[%clk 0:00:08]}  Rde7 {[%clk 0:00:06]} 30. Be2 {[%clk 0:00:08]}  e3+ {[%clk 0:00:06]} 31. Kg1 {[%clk 0:00:08]}  Kg7 {[%clk 0:00:06]} 32. Qc3+ {[%clk 0:00:08]}  Kh7 {[%clk 0:00:07]} 33. a4 {[%clk 0:00:08]}  c5 {[%clk 0:00:06]} 34. b4 {[%clk 0:00:07]}  cxb4 {[%clk 0:00:06]} 35. Qxb4 {[%clk 0:00:08]}  Bg4 {[%clk 0:00:06]} 36. Bxg4 {[%clk 0:00:07]}  hxg4 {[%clk 0:00:07]} 37. c5 {[%clk 0:00:08]}  f5 {[%clk 0:00:06]} 38. g3 {[%clk 0:00:05]}  e2 {[%clk 0:00:06]} 39. Kf2 {[%clk 0:00:05]}  g5 {[%clk 0:00:03]} 40. a5 {[%clk 0:00:04]}  Kg7 {[%clk 0:00:02]} 41. Qd4+ {[%clk 0:00:03]}  Kg6 {[%clk 0:00:03]} 42. Qd6+ {[%clk 0:00:03]}  Re6 {[%clk 0:00:03]} 43. Qc7 {[%clk 0:00:03]}  R8e7 {[%clk 0:00:04]} 44. Qd8 {[%clk 0:00:03]}  f4 {[%clk 0:00:04]} 45. Qd3+ {[%clk 0:00:02]}  Kf6 {[%clk 0:00:04]} 46. Qd4+ {[%clk 0:00:02]}  Kf5 {[%clk 0:00:05]} 47. Qd3+ {[%clk 0:00:02]}  Kf6 {[%clk 0:00:06]} 0-1


[Site "https://www.chess.com"]

[Event "Titled Tuesday Blitz September 28 2021"]
[White "Mortazavi, Ali"]
[Black "Ekdyshman, Mikhail"]
[WhiteFideId "401323"]
[BlackFideId "4149416"]
[WhiteElo "2339"]
[BlackElo "2256"]
[Result "0-1"]
[Round "07"]
[TimeControl "180+1"]
[Date "2021.09.28"]
[WhiteClock "0:00:06"]
[BlackClock "0:01:45"]

1. e4 {[%clk 0:00:03]}  c5 {[%clk 0:03:00]} 2. Nc3 {[%clk 0:00:03]}  d6 {[%clk 0:02:58]} 3. g3 {[%clk 0:00:04]}  g6 {[%clk 0:02:58]} 4. Bg2 {[%clk 0:00:05]}  Bg7 {[%clk 0:02:58]} 5. d3 {[%clk 0:00:06]}  Nc6 {[%clk 0:02:58]} 6. Be3 {[%clk 0:00:07]}  Rb8 {[%clk 0:02:57]} 7. Qd2 {[%clk 0:00:08]}  b5 {[%clk 0:02:57]} 8. Nd1 {[%clk 0:00:09]}  b4 {[%clk 0:02:55]} 9. Ne2 {[%clk 0:00:10]}  h5 {[%clk 0:02:53]} 10. O-O {[%clk 0:00:10]}  h4 {[%clk 0:02:52]} 11. h3 {[%clk 0:00:11]}  hxg3 {[%clk 0:02:50]} 12. fxg3 {[%clk 0:00:10]}  Bxh3 {[%clk 0:02:49]} 13. Nf4 {[%clk 0:00:10]}  Bxg2 {[%clk 0:02:49]} 14. Kxg2 {[%clk 0:00:10]}  Qd7 {[%clk 0:02:47]} 15. Nf2 {[%clk 0:00:11]}  Ne5 {[%clk 0:02:46]} 16. Rh1 {[%clk 0:00:12]}  Nf6 {[%clk 0:02:44]} 17. Rxh8+ {[%clk 0:00:11]}  Bxh8 {[%clk 0:02:45]} 18. Rh1 {[%clk 0:00:12]}  Bg7 {[%clk 0:02:44]} 19. Nd5 {[%clk 0:00:11]}  Nxd5 {[%clk 0:02:44]} 20. exd5 {[%clk 0:00:11]}  Qb7 {[%clk 0:02:38]} 21. Ne4 {[%clk 0:00:09]}  Qxd5 {[%clk 0:02:35]} 22. Bh6 {[%clk 0:00:10]}  Bxh6 {[%clk 0:02:26]} 23. Qxh6 {[%clk 0:00:10]}  Kd7 {[%clk 0:02:16]} 24. Qh3+ {[%clk 0:00:10]}  f5 {[%clk 0:02:14]} 25. Kf1 {[%clk 0:00:11]}  Nxd3 {[%clk 0:02:11]} 26. Nd2 {[%clk 0:00:07]}  Nf2 {[%clk 0:02:04]} 27. Kxf2 {[%clk 0:00:05]}  Qxd2+ {[%clk 0:02:03]} 28. Kf3 {[%clk 0:00:06]}  Qxc2 {[%clk 0:02:01]} 29. Re1 {[%clk 0:00:06]}  Qxb2 {[%clk 0:01:51]} 30. Qh7 {[%clk 0:00:06]}  Qf6 {[%clk 0:01:50]} 31. Qh1 {[%clk 0:00:06]}  b3 {[%clk 0:01:48]} 32. a3 {[%clk 0:00:05]}  b2 {[%clk 0:01:47]} 33. Kf2 {[%clk 0:00:06]}  Qd4+ {[%clk 0:01:46]} 34. Ke2 {[%clk 0:00:06]}  Qe4+ {[%clk 0:01:45]} 0-1


[Site "https://www.chess.com"]